bitfinex-derivatives/quotes_BTCF0:USTF0_20250514
["timestamp","ask_amount","ask_price","bid_price","bid_amount"]
[1747227814822,1.38294844,103990.0,103980.0,0.12188089]
[1747227815327,1.22094844,103990.0,103980.0,0.12188089]
[1747227815522,1.22094844,103990.0,103980.0,0.06257899]
[1747227815715,1.21994844,103990.0,103980.0,0.06257899]
[1747227815915,1.22694844,103990.0,103980.0,0.06257899]
[1747227818224,0.1923343,103970.0,103960.0,0.4214]
[1747227818522,0.1923343,103970.0,103960.0,0.51756771]
[1747227818731,0.2883343,103970.0,103960.0,0.51756771]
[1747227819231,0.2883343,103970.0,103960.0,0.67956771]
[1747227820128,0.2893343,103970.0,103960.0,0.67956771]
[1747227823430,0.47299211,103970.0,103960.0,0.64916771]
[1747227824129,0.83379211,103970.0,103960.0,0.23004811]
[1747227824329,1.07063211,103970.0,103960.0,0.0863309]
[1747227825234,1.07063211,103970.0,103950.0,0.00192391]
[1747227825235,0.1923528,103960.0,103950.0,0.00192391]
[1747227825436,0.67383061,103960.0,103950.0,0.00192391]
[1747227825637,0.67383061,103960.0,103950.0,0.09811012]
[1747227826236,0.67383061,103960.0,103950.0,0.26011012]
[1747227826535,0.4901728,103960.0,103950.0,0.26011012]
[1747227826737,0.67383061,103960.0,103950.0,0.29321012]
[1747227827440,0.67383061,103960.0,103950.0,0.29521012]
[1747227828137,0.67583061,103960.0,103950.0,0.29421012]
[1747227828940,0.4941728,103960.0,103950.0,0.48558142]
[1747227829134,0.2588528,103960.0,103950.0,0.32391012]
[1747227829744,0.2588528,103960.0,103950.0,0.51628142]
[1747227829938,0.2588528,103960.0,103950.0,0.32391012]
[1747227830139,0.2588528,103960.0,103950.0,0.32953083]
[1747227830340,0.2588528,103960.0,103950.0,0.70555994]
[1747227830741,0.1963528,103960.0,103950.0,1.06635994]
[1747227836239,0.2291528,103960.0,103950.0,1.06635994]
[1747227837643,0.1963528,103960.0,103950.0,1.30319994]
[1747227839349,0.004,103960.0,103950.0,1.30319994]
[1747227839570,0.240382,103990.0,103980.0,0.1922973]
[1747227839747,0.3529609,103990.0,103980.0,0.73675511]
[1747227840049,0.272682,103990.0,103980.0,2.39875511]
[1747227840256,0.272682,103990.0,103980.0,2.58815057]
[1747227840455,0.304882,103990.0,103980.0,2.58815057]
[1747227840753,0.307882,103990.0,103980.0,2.58815057]
[1747227841144,0.307882,103990.0,103980.0,2.59839511]
[1747227841343,0.304882,103990.0,103980.0,2.59839511]
[1747227841544,0.306882,103990.0,103980.0,2.59839511]
[1747227842054,0.308882,103990.0,103980.0,2.58815057]
[1747227842253,0.244382,103990.0,103980.0,2.58815057]
[1747227842660,0.244382,103990.0,103980.0,2.82147057]
[1747227843249,0.244382,103990.0,103980.0,2.63781276]
[1747227843450,0.244382,103990.0,103980.0,2.82147057]
[1747227844356,0.004,103990.0,103980.0,3.00512838]
[1747227844745,0.1962973,103990.0,103980.0,3.00512838]
[1747227844946,0.1962973,103990.0,103980.0,1.32147057]
[1747227845148,0.1962973,103990.0,103980.0,1.3313271]
[1747227845546,0.1962973,103990.0,103980.0,2.8313271]
[1747227845760,0.1942973,103990.0,103980.0,2.8313271]
[1747227845953,0.1942973,103990.0,103980.0,3.0641671]
[1747227846349,0.2559973,103990.0,103980.0,2.60362781]
[1747227846548,0.2559973,103990.0,103980.0,3.07002781]
[1747227847456,0.2559973,103990.0,103980.0,2.87773051]
[1747227847760,0.2559973,103990.0,103980.0,2.60364631]
[1747227847957,0.2559973,103990.0,103980.0,2.83684631]
[1747227848560,0.2875973,103990.0,103980.0,2.83684631]
[1747227849851,0.2875973,103990.0,103980.0,2.6531885]
[1747227850158,0.2875973,103990.0,103980.0,2.83684631]
[1747227851558,0.2423541,104000.0,103990.0,0.1922973]
[1747227851862,0.2423541,104000.0,103990.0,1.03515511]
[1747227852049,0.2423541,104000.0,103990.0,1.19715511]
[1747227852251,0.2743541,104000.0,103990.0,1.29332282]
[1747227852845,0.2773541,104000.0,103990.0,1.29332282]
[1747227853052,0.3076541,104000.0,103990.0,1.29332282]
[1747227853258,0.3076541,104000.0,103990.0,1.11046501]
[1747227853458,0.3076541,104000.0,103990.0,1.29412282]
[1747227854661,0.2773541,104000.0,103990.0,1.29412282]
[1747227855867,0.005,104000.0,103990.0,1.29412282]
[1747227856366,0.1972788,104000.0,103990.0,2.79412282]
[1747227856754,0.005,104000.0,103990.0,2.79412282]
[1747227857061,0.1972788,104000.0,103990.0,2.79412282]
[1747227857569,0.005,104000.0,103990.0,2.79412282]
[1747227857866,0.1972788,104000.0,103990.0,2.79412282]
[1747227858866,0.005,104000.0,103990.0,2.79412282]
[1747227859366,0.005,104000.0,103990.0,2.56092282]
[1747227859562,0.005,104000.0,103990.0,3.02752282]
[1747227860465,0.005,104000.0,103990.0,3.04732732]
[1747227861162,0.1972788,104000.0,103990.0,2.59422732]
[1747227861357,0.1972788,104000.0,103990.0,3.06062732]
[1747227861557,0.1972788,104000.0,103990.0,2.59422732]
[1747227861759,0.1952788,104000.0,103990.0,3.06054732]
[1747227861958,0.1942788,104000.0,103990.0,3.06054732]
[1747227863168,0.2273788,104000.0,103990.0,3.06054732]
[1747227865363,0.002,104000.0,103990.0,3.06054732]
[1747227865867,0.1942788,104000.0,103990.0,3.06006732]
[1747227866263,0.1942788,104000.0,103990.0,2.59422732]
[1747227866564,0.2265788,104000.0,103990.0,2.45143221]
[1747227866765,0.2886788,104000.0,103990.0,2.18547221]
[1747227866963,0.2886788,104000.0,103990.0,2.13877221]
[1747227867366,0.47233661,104000.0,103990.0,2.13877221]
[1747227867866,0.47233661,104000.0,103990.0,2.12458842]
[1747227868061,0.2886788,104000.0,103990.0,2.12458842]
[1747227873467,0.47233661,104000.0,103990.0,0.26378842]
[1747227873776,0.83313661,104000.0,103990.0,0.16762071]
[1747227873975,0.2886788,104000.0,103990.0,1.85991801]
[1747227874172,0.2886788,104000.0,103990.0,1.60177917]
[1747227874372,0.2896788,104000.0,103990.0,2.33853428]
[1747227874569,0.2896788,104000.0,103990.0,2.40393428]
[1747227874964,0.2916788,104000.0,103990.0,2.40393428]
[1747227875166,0.2916788,104000.0,103990.0,2.56593428]
[1747227875467,0.2916788,104000.0,103990.0,2.12457917]
[1747227876176,0.2916788,104000.0,103990.0,1.96257917]
[1747227876573,0.2916788,104000.0,103990.0,1.97674627]
[1747227877089,0.2916788,104000.0,103990.0,2.13874627]
[1747227879767,0.2916788,104000.0,103990.0,2.13312556]
[1747227880768,0.2916788,104000.0,103990.0,2.54590138]
[1747227880965,0.2916788,104000.0,103990.0,1.11030138]
[1747227881172,0.005,104000.0,103990.0,1.34234138]
[1747227881571,0.005,104000.0,103990.0,2.84234138]
[1747227881776,0.1972788,104000.0,103990.0,2.84234138]
[1747227882369,0.005,104000.0,103990.0,3.20314138]
[1747227882577,0.1952788,104000.0,103990.0,3.20314138]
[1747227883077,0.003,104000.0,103990.0,3.29930138]
[1747227883278,0.002,104000.0,103990.0,3.29930138]
[1747227883777,0.1942788,104000.0,103990.0,3.29930138]
[1747227885278,0.1942788,104000.0,103990.0,3.16541251]
[1747227885477,0.1942788,104000.0,103990.0,3.63005251]
[1747227885678,0.2886788,104000.0,103990.0,3.16541251]
[1747227885874,0.2886788,104000.0,103990.0,3.63005251]
[1747227886485,0.2886788,104000.0,103990.0,3.16541251]
[1747227886666,0.2886788,104000.0,103990.0,3.63001251]
[1747227886972,0.2886788,104000.0,103990.0,3.63053251]
[1747227887374,0.2886788,104000.0,103990.0,3.16541251]
[1747227887580,0.2886788,104000.0,103990.0,3.63045251]
[1747227887883,0.2886788,104000.0,103990.0,2.9907374]
[1747227888069,0.2886788,104000.0,103990.0,3.3823147]
[1747227889186,0.2886788,104000.0,103990.0,3.18800357]
[1747227889371,0.2886788,104000.0,103990.0,3.37166138]
[1747227890182,0.2886788,104000.0,103990.0,2.90670138]
[1747227890482,0.2886788,104000.0,103990.0,3.37122138]
[1747227890781,0.2886788,104000.0,103990.0,3.40332138]
[1747227891179,0.2886788,104000.0,103990.0,2.71440408]
[1747227891481,0.47233661,104000.0,103990.0,1.77794627]
[1747227891681,0.47233661,104000.0,103990.0,1.76377917]
[1747227891876,0.2886788,104000.0,103990.0,0.26377917]
[1747227892072,0.2886788,104000.0,103990.0,0.10177917]
[1747227892272,0.2886788,104000.0,103990.0,1.60177917]
[1747227892679,0.2886788,104000.0,103990.0,1.63497917]
[1747227893166,0.2896788,104000.0,103990.0,1.79697917]
[1747227894077,0.2916788,104000.0,103990.0,1.79697917]
[1747227894773,0.2916788,104000.0,103990.0,2.53373428]
[1747227895092,0.2916788,104000.0,103990.0,2.15777917]
[1747227896783,0.2916788,104000.0,103990.0,2.19027917]
[1747227896984,0.2916788,104000.0,103990.0,2.38257647]
[1747227897182,0.2916788,104000.0,103990.0,2.56623428]
[1747227897379,0.2281788,104000.0,103990.0,1.06623428]
[1747227897579,0.2281788,104000.0,103990.0,1.09703428]
[1747227897781,0.1972788,104000.0,103990.0,2.59703428]
[1747227898790,0.1972788,104000.0,103990.0,2.61130262]
[1747227898991,0.2283788,104000.0,103990.0,2.61130262]
[1747227899289,0.2263788,104000.0,103990.0,2.60568191]
[1747227899994,0.2263788,104000.0,103990.0,2.83620191]
[1747227900181,0.2263788,104000.0,103990.0,2.84182262]
[1747227900379,0.2565788,104000.0,103990.0,2.41900532]
[1747227900691,0.2565788,104000.0,103990.0,2.46586751]
[1747227900988,0.2565788,104000.0,103990.0,1.87454751]
[1747227901187,0.2565788,104000.0,103990.0,2.20454751]
[1747227902292,0.2565788,104000.0,103990.0,2.04254751]
[1747227902681,0.2575788,104000.0,103990.0,2.04254751]
[1747227903189,0.2575788,104000.0,103990.0,2.39684481]
[1747227903896,0.2595788,104000.0,103990.0,2.39684481]
[1747227905692,0.2595788,104000.0,103990.0,2.58050262]
[1747227908089,0.2595788,104000.0,103990.0,2.39684481]
[1747227909386,0.2595788,104000.0,103990.0,2.20454751]
[1747227909897,0.2595788,104000.0,103990.0,2.39684481]
[1747227910799,0.2595788,104000.0,103990.0,2.03604481]
[1747227910988,0.2595788,104000.0,103990.0,2.39684481]
[1747227913785,0.2595788,104000.0,103990.0,2.20454751]
[1747227913987,0.2595788,104000.0,103990.0,2.13884751]
[1747227914485,0.2595788,104000.0,103990.0,2.17004751]
[1747227915796,0.2595788,104000.0,103990.0,2.36234481]
[1747227915999,0.2595788,104000.0,103990.0,2.20084751]
[1747227922092,0.80403661,104000.0,103990.0,0.00562071]
[1747227922593,0.80403661,104000.0,103990.0,1.50562071]
[1747227923002,0.81423239,104000.0,103990.0,1.50562071]
[1747227923400,0.81423239,104000.0,103990.0,0.00562071]
[1747227923698,1.56091239,104000.0,103990.0,1e-08]
[1747227925198,1.72291239,104000.0,103990.0,1e-08]
[1747227925791,1.87291239,104000.0,103990.0,1e-08]
[1747227928189,1.71091239,104000.0,103990.0,1e-08]
[1747227928901,1.48039239,104000.0,103990.0,1e-08]
[1747227929105,1.93851239,104000.0,103990.0,1e-08]
[1747227931307,1.48039239,104000.0,103990.0,1e-08]
[1747227931601,1.93559239,104000.0,103990.0,1e-08]
[1747227931801,1.48039239,104000.0,103990.0,1e-08]
[1747227932002,1.68559239,104000.0,103990.0,1e-08]
[1747227932201,0.97039239,104000.0,103990.0,0.16200001]
[1747227932403,1.42559239,104000.0,103990.0,0.16200001]
[1747227932605,1.42559239,104000.0,103990.0,0.1189111]
[1747227932906,0.1923158,103980.0,103970.0,0.0619]
[1747227933209,0.37597361,103980.0,103970.0,0.1935]
[1747227933390,0.44067361,103980.0,103970.0,0.1935]
[1747227933595,1.25667361,103980.0,103970.0,0.162]
[1747227933905,1.0730158,103980.0,103970.0,0.1927]
[1747227934112,1.0730158,103980.0,103970.0,0.0627]
[1747227934406,0.6178158,103980.0,103970.0,0.35121126]
[1747227934709,0.6178158,103980.0,103970.0,0.16549767]
[1747227935006,0.6178158,103980.0,103970.0,0.35783197]
[1747227935208,0.6178158,103980.0,103970.0,0.32749767]
[1747227935406,0.6178158,103980.0,103970.0,0.51983197]
[1747227935602,0.6178158,103980.0,103970.0,0.51783197]
[1747227935903,0.2241158,103980.0,103970.0,0.51783197]
[1747227936110,0.2241158,103980.0,103970.0,0.87863197]
[1747227936502,0.2251158,103980.0,103970.0,0.51783197]
[1747227936812,0.2251158,103980.0,103970.0,0.51683197]
[1747227937311,0.2271158,103980.0,103970.0,0.51683197]
[1747227938410,0.2271158,103980.0,103970.0,0.32449767]
[1747227938709,0.2271158,103980.0,103970.0,0.51683197]
[1747227938912,0.41077361,103980.0,103970.0,0.32449767]
[1747227939296,0.44157361,103980.0,103970.0,0.32449767]
[1747227939508,0.2579158,103980.0,103970.0,0.32449767]
[1747227941009,0.2579158,103980.0,103970.0,0.51683197]
[1747227941313,0.2271158,103980.0,103970.0,0.51683197]
[1747227944213,0.2271158,103980.0,103970.0,0.32449767]
[1747227944426,0.44367361,103980.0,103970.0,0.32449767]
[1747227946518,0.80447361,103980.0,103970.0,0.22832071]
[1747227948316,0.6208158,103980.0,103970.0,0.22832071]
[1747227950016,0.80447361,103980.0,103970.0,0.22832071]
[1747227951015,0.80447361,103980.0,103970.0,0.19832071]
[1747227951715,0.98813142,103980.0,103970.0,0.19832071]
[1747227952127,0.80447361,103980.0,103970.0,0.19832071]
[1747227952310,0.98813142,103980.0,103970.0,0.16762071]
[1747227952716,1.39430742,103980.0,103970.0,0.11292721]
[1747227953018,0.1923343,103970.0,103960.0,4e-08]
[1747227953321,1.76109211,103970.0,103960.0,4e-08]
[1747227953521,1.85728011,103970.0,103960.0,4e-08]
[1747227953910,1.85728011,103970.0,103950.0,0.15127534]
[1747227953911,0.1923528,103960.0,103950.0,0.15127534]
[1747227954118,0.80061061,103960.0,103950.0,0.10394414]
[1747227954319,0.81061061,103960.0,103950.0,0.10394414]
[1747227954709,0.81061061,103960.0,103950.0,0.00625324]
[1747227954909,0.1923713,103950.0,103940.0,4e-08]
[1747227955109,1.47162692,103950.0,103940.0,4e-08]
[1747227955721,1.48162692,103950.0,103940.0,4e-08]
[1747227956118,1.48162692,103950.0,103940.0,0.00300004]
[1747227956306,1.48162692,103950.0,103940.0,0.00700004]
[1747227957025,1.48162692,103950.0,103940.0,0.00400004]
[1747227957822,1.35638692,103950.0,103940.0,4e-08]
[1747227958017,1.34796911,103950.0,103940.0,4e-08]
[1747227958712,1.35804604,103950.0,103940.0,4e-08]
[1747227959219,1.29804604,103950.0,103940.0,4e-08]
[1747227959413,1.30804604,103950.0,103940.0,4e-08]
[1747227959612,0.1923898,103940.0,103930.0,1.5611]
[1747227959924,0.6169898,103940.0,103930.0,1.7535083]
[1747227960225,0.4199898,103940.0,103930.0,2.55617083]
[1747227960412,0.4199898,103940.0,103930.0,2.37251302]
[1747227960609,0.2233898,103940.0,103930.0,2.37251302]
[1747227960925,0.4509898,103940.0,103930.0,2.37451302]
[1747227961522,0.2556898,103940.0,103930.0,2.37451302]
[1747227961912,0.4832898,103940.0,103930.0,2.37551302]
[1747227962317,0.2556898,103940.0,103930.0,2.37551302]
[1747227962519,0.4832898,103940.0,103930.0,2.37551302]
[1747227962719,0.4509898,103940.0,103930.0,2.37551302]
[1747227963823,0.2233898,103940.0,103930.0,2.37551302]
[1747227964127,0.4509898,103940.0,103930.0,2.37551302]
[1747227965329,0.4509898,103940.0,103930.0,2.38113373]
[1747227965827,0.4840898,103940.0,103930.0,2.38113373]
[1747227967718,0.4840898,103940.0,103930.0,2.18872543]
[1747227967920,0.4840898,103940.0,103930.0,2.38113373]
[1747227968928,0.4509898,103940.0,103930.0,2.38113373]
[1747227970635,0.2233898,103940.0,103930.0,2.56479154]
[1747227970825,0.4199898,103940.0,103930.0,2.56479154]
[1747227972429,0.4199898,103940.0,103930.0,2.38113373]
[1747227972624,0.2225898,103940.0,103930.0,2.18872543]
[1747227972819,0.2529898,103940.0,103930.0,2.18872543]
[1747227973230,0.2529898,103940.0,103930.0,2.38113373]
[1747227974032,0.43664761,103940.0,103930.0,2.18872543]
[1747227974736,0.43664761,103940.0,103930.0,2.38113373]
[1747227974922,0.2529898,103940.0,103930.0,2.38113373]
[1747227975124,0.2529898,103940.0,103930.0,2.18872543]
[1747227975726,0.43664761,103940.0,103930.0,2.18872543]
[1747227976029,0.79744761,103940.0,103930.0,1.70122071]
[1747227977835,0.79744761,103940.0,103930.0,1.67062071]
[1747227978033,1.02504761,103940.0,103930.0,1.67062071]
[1747227978241,1.02504761,103940.0,103930.0,1.50862071]
[1747227978537,1.02504761,103940.0,103930.0,1.52282112]
[1747227979129,1.40504761,103940.0,103930.0,2e-08]
[1747227979327,1.04504761,103940.0,103930.0,0.00562073]
[1747227979533,0.1924268,103920.0,103910.0,1.59876798]
[1747227979729,0.60368461,103920.0,103910.0,1.59876798]
[1747227979929,0.66968461,103920.0,103910.0,0.38742725]
[1747227980124,0.66968461,103920.0,103910.0,0.54942725]
[1747227980336,0.66968461,103920.0,103910.0,1.85698195]
[1747227980537,0.4860268,103920.0,103910.0,1.85698195]
[1747227980738,0.4860268,103920.0,103910.0,1.86198195]
[1747227981243,0.4860268,103920.0,103910.0,2.05442725]
[1747227981435,0.4527868,103920.0,103910.0,2.60388506]
[1747227981640,0.2252268,103920.0,103910.0,2.60388506]
[1747227981841,0.1924268,103920.0,103910.0,2.60388506]
[1747227982948,0.1924268,103920.0,103910.0,2.42022725]
[1747227983642,0.2246268,103920.0,103910.0,2.42022725]
[1747227985549,0.2246268,103920.0,103910.0,2.60388506]
[1747227986048,0.2246268,103920.0,103910.0,2.42022725]
[1747227986639,0.1924268,103920.0,103910.0,2.60388506]
[1747227990149,0.2404967,103940.0,103930.0,0.1924083]
[1747227990354,0.3207976,103940.0,103930.0,1.09766611]
[1747227990556,0.3207976,103940.0,103930.0,2.69808682]
[1747227990859,0.3207976,103940.0,103930.0,2.79430079]
[1747227991153,0.3207976,103940.0,103930.0,2.95730079]
[1747227991354,0.3207976,103940.0,103930.0,2.95830079]
[1747227996357,0.2404967,103940.0,103930.0,3.18582079]
[1747227996551,0.2404967,103940.0,103930.0,1.68582079]
[1747227996959,0.23983027,103950.0,103940.0,0.1923898]
[1747227996960,0.43221637,103950.0,103940.0,0.1923898]
[1747227997167,0.27302417,103950.0,103940.0,2.46524761]
[1747227997547,0.27302417,103950.0,103940.0,2.56146158]
[1747227998652,0.00144397,103950.0,103940.0,2.56146158]
[1747227998858,0.19381527,103950.0,103940.0,2.56146158]
[1747227999849,0.00144397,103950.0,103940.0,2.56146158]
[1747228000162,0.19381527,103950.0,103940.0,2.56146158]
[1747228001065,0.00144397,103950.0,103940.0,2.56146158]
[1747228001562,0.19381527,103950.0,103940.0,2.56146158]
[1747228002159,0.19381527,103950.0,103940.0,1.06146158]
[1747228002556,0.19381527,103950.0,103940.0,2.56146158]
[1747228002864,0.00144397,103950.0,103940.0,2.56146158]
[1747228003065,0.19381527,103950.0,103940.0,2.56146158]
[1747228004764,0.00144397,103950.0,103940.0,2.56146158]
[1747228004961,0.00144397,103950.0,103940.0,2.65766558]
[1747228005360,0.002,103960.0,103950.0,0.1923713]
[1747228005557,0.002,103960.0,103950.0,1.24382692]
[1747228005764,0.002,103960.0,103950.0,1.06016911]
[1747228005966,0.002,103960.0,103950.0,1.15636457]
[1747228006268,0.1943528,103960.0,103950.0,1.31836457]
[1747228006467,0.2251528,103960.0,103950.0,1.31836457]
[1747228006671,0.0368,103960.0,103950.0,1.31836457]
[1747228006855,0.2291528,103960.0,103950.0,1.31836457]
[1747228007259,0.006,103960.0,103950.0,1.31836457]
[1747228007465,0.1983528,103960.0,103950.0,1.31836457]
[1747228008059,0.1983528,103960.0,103950.0,2.81836457]
[1747228008461,0.2291528,103960.0,103950.0,2.81836457]
[1747228008868,0.2291528,103960.0,103950.0,2.63470676]
[1747228009172,0.2291528,103960.0,103950.0,2.83289041]
[1747228010158,0.1983528,103960.0,103950.0,2.83289041]
[1747228010363,0.2313528,103960.0,103950.0,2.83289041]
[1747228011069,0.2313528,103960.0,103950.0,2.82398528]
[1747228011867,0.2313528,103960.0,103950.0,3.05142528]
[1747228012871,0.2313528,103960.0,103950.0,2.86776747]
[1747228013054,0.2313528,103960.0,103950.0,3.05142528]
[1747228013969,0.2313528,103960.0,103950.0,2.86776747]
[1747228014171,0.2313528,103960.0,103950.0,2.41288747]
[1747228014172,0.41501061,103960.0,103950.0,2.41288747]
[1747228014372,0.44651061,103960.0,103950.0,2.38108747]
[1747228015371,0.44651061,103960.0,103950.0,2.34998747]
[1747228017362,0.2628528,103960.0,103950.0,2.34998747]
[1747228017562,0.44651061,103960.0,103950.0,2.38108747]
[1747228018662,0.44651061,103960.0,103950.0,2.60840747]
[1747228019175,0.2628528,103960.0,103950.0,2.60840747]
[1747228019374,0.44651061,103960.0,103950.0,2.60840747]
[1747228020882,0.2628528,103960.0,103950.0,2.60840747]
[1747228023398,0.2628528,103960.0,103950.0,2.62287764]
[1747228027879,0.2628528,103960.0,103950.0,2.80653545]
[1747228028070,0.2628528,103960.0,103950.0,2.81813727]
[1747228029081,0.2628528,103960.0,103950.0,3.00179508]
[1747228029983,0.2628528,103960.0,103950.0,2.81813727]
[1747228030183,0.2628528,103960.0,103950.0,3.00179508]
[1747228031578,0.0705,103960.0,103950.0,3.00179508]
[1747228031880,0.006,103960.0,103950.0,3.18545289]
[1747228032083,0.006,103960.0,103950.0,2.81813727]
[1747228032376,0.1983528,103960.0,103950.0,3.00179508]
[1747228032580,0.2301528,103960.0,103950.0,2.77447508]
[1747228032780,0.2944528,103960.0,103950.0,2.81805727]
[1747228032980,0.2944528,103960.0,103950.0,2.39844597]
[1747228033193,0.47811061,103960.0,103950.0,2.55971727]
[1747228033484,0.2944528,103960.0,103950.0,2.55971727]
[1747228034472,0.2944528,103960.0,103950.0,2.59241727]
[1747228034677,0.2944528,103960.0,103950.0,2.98242875]
[1747228035382,0.47811061,103960.0,103950.0,2.74288728]
[1747228035582,0.47811061,103960.0,103950.0,0.88208728]
[1747228035878,0.47811061,103960.0,103950.0,0.84908728]
[1747228036084,0.47811061,103960.0,103950.0,2.34908728]
[1747228037188,0.47811061,103960.0,103950.0,1.60181617]
[1747228037688,0.47811061,103960.0,103950.0,1.79418747]
[1747228037887,0.47811061,103960.0,103950.0,2.15498747]
[1747228038274,0.47811061,103960.0,103950.0,1.96261617]
[1747228041390,0.47811061,103960.0,103950.0,1.99301617]
[1747228041884,0.66176842,103960.0,103950.0,1.96261617]
[1747228042075,1.18456842,103960.0,103950.0,0.00562071]
[1747228042573,1.19456842,103960.0,103950.0,0.00562071]
[1747228042787,0.1923713,103950.0,103940.0,0.19607276]
[1747228042982,1.44166692,103950.0,103940.0,0.19607276]
[1747228043287,1.60366692,103950.0,103940.0,0.19607276]
[1747228043883,0.1924083,103930.0,103920.0,0.29186272]
[1747228044087,2.12274611,103930.0,103920.0,0.19577972]
[1747228044288,0.1924268,103920.0,103910.0,0.34430354]
[1747228044490,0.83518461,103920.0,103910.0,0.34430354]
[1747228045382,0.83518461,103920.0,103910.0,0.34286021]
[1747228045586,0.83518461,103920.0,103910.0,0.00192465]
[1747228045780,0.83518461,103920.0,103910.0,0.00392465]
[1747228045981,0.8452009,103920.0,103910.0,0.00392465]
[1747228047475,0.8452009,103920.0,103910.0,0.00492465]
[1747228048992,0.5180468,103920.0,103910.0,0.54938246]
[1747228049283,0.5180468,103920.0,103910.0,0.93552776]
[1747228049284,0.2907268,103920.0,103910.0,0.93552776]
[1747228049591,0.30533008,103920.0,103910.0,0.74308246]
[1747228049787,0.53265008,103920.0,103910.0,0.55942465]
[1747228049979,0.53265008,103920.0,103910.0,0.38228246]
[1747228050990,0.5180468,103920.0,103910.0,0.48730244]
[1747228051188,0.2907268,103920.0,103910.0,0.51750244]
[1747228051380,0.7454068,103920.0,103910.0,0.51750244]
[1747228051778,0.2907268,103920.0,103910.0,0.70116025]
[1747228052084,0.2255268,103920.0,103910.0,1.06196025]
[1747228052391,0.1924268,103920.0,103910.0,1.09516025]
[1747228052594,0.2253268,103920.0,103910.0,1.09516025]
[1747228052797,0.1924268,103920.0,103910.0,1.09516025]
[1747228053789,0.1924268,103920.0,103910.0,2.59516025]
[1747228054696,0.2557268,103920.0,103910.0,2.60078096]
[1747228055699,0.2858268,103920.0,103910.0,2.60078096]
[1747228055999,0.2858268,103920.0,103910.0,2.41712315]
[1747228056200,0.2858268,103920.0,103910.0,2.60078096]
[1747228057098,0.2858268,103920.0,103910.0,2.41712315]
[1747228057298,0.2858268,103920.0,103910.0,2.60078096]
[1747228058383,0.2253268,103920.0,103910.0,2.60078096]
[1747228059094,0.2577268,103920.0,103910.0,2.60078096]
[1747228061301,0.2577268,103920.0,103910.0,2.22467785]
[1747228061793,0.83408461,103920.0,103910.0,1.80047785]
[1747228062195,0.83408461,103920.0,103910.0,1.63847785]
[1747228062495,0.84825253,103920.0,103910.0,0.01054536]
[1747228063491,1.12814234,103920.0,103910.0,0.01054536]
[1747228063690,0.94448453,103920.0,103910.0,0.01054536]
[1747228064492,0.84825253,103920.0,103910.0,0.01054536]
[1747228068903,1.03191034,103920.0,103910.0,0.01054536]
[1747228069096,0.84825253,103920.0,103910.0,0.01054536]
[1747228069297,1.03191034,103920.0,103910.0,0.01054536]
[1747228070009,0.84825253,103920.0,103910.0,0.01054536]
[1747228072899,1.08191034,103920.0,103910.0,0.01054536]
[1747228073100,1.17814234,103920.0,103910.0,0.01054536]
[1747228073610,0.99448453,103920.0,103910.0,0.01054536]
[1747228075212,1.17814234,103920.0,103910.0,0.01054536]
[1747228075398,0.99448453,103920.0,103910.0,0.01054536]
[1747228076407,1.17814234,103920.0,103910.0,0.01054536]
[1747228077415,0.99448453,103920.0,103910.0,0.01054536]
[1747228077714,0.89825253,103920.0,103910.0,0.01054536]
[1747228079016,0.71459472,103920.0,103910.0,0.01054536]
[1747228079201,0.84825253,103920.0,103910.0,0.04314536]
[1747228079398,0.2896268,103920.0,103910.0,0.78004847]
[1747228079598,0.2253268,103920.0,103910.0,0.90838096]
[1747228080013,0.2253268,103920.0,103910.0,2.40838096]
[1747228080223,0.2253268,103920.0,103910.0,2.38672315]
[1747228081306,0.1924268,103920.0,103910.0,2.38672315]
[1747228081611,0.1924268,103920.0,103910.0,2.57038096]
[1747228082404,0.1924268,103920.0,103910.0,2.38672315]
[1747228082610,0.2231268,103920.0,103910.0,1.83347785]
[1747228082916,0.40678461,103920.0,103910.0,1.83347785]
[1747228083220,0.66610461,103920.0,103910.0,1.82785714]
[1747228083402,0.4824468,103920.0,103910.0,1.82785714]
[1747228083716,0.4824468,103920.0,103910.0,1.73162465]
[1747228084215,0.4824468,103920.0,103910.0,1.73724536]
[1747228086110,0.66610461,103920.0,103910.0,1.73724536]
[1747228087112,0.66610461,103920.0,103910.0,1.57524536]
[1747228087316,0.4824468,103920.0,103910.0,1.57524536]
[1747228088116,0.4824468,103920.0,103910.0,1.73724536]
[1747228088629,0.4504068,103920.0,103910.0,2.20958096]
[1747228089109,0.2231268,103920.0,103910.0,2.20958096]
[1747228089307,0.2231268,103920.0,103910.0,2.02592315]
[1747228089716,0.2231268,103920.0,103910.0,1.83347785]
[1747228089911,0.76758461,103920.0,103910.0,1.83347785]
[1747228090111,0.79948461,103920.0,103910.0,1.73724536]
[1747228090328,0.99776399,103920.0,103910.0,0.23724536]
[1747228090500,0.81410618,103920.0,103910.0,0.23724536]
[1747228090705,0.85410618,103920.0,103910.0,0.23724536]
[1747228091415,0.67044837,103920.0,103910.0,0.23724536]
[1747228091713,1.0384868,103920.0,103910.0,0.52592315]
[1747228091914,0.2231268,103920.0,103910.0,0.70958096]
[1747228092109,0.1924268,103920.0,103910.0,1.07038096]
[1747228092304,0.4197068,103920.0,103910.0,1.07038096]
[1747228092505,0.4197068,103920.0,103910.0,0.88672315]
[1747228093204,0.73688461,103920.0,103910.0,0.33347785]
[1747228093409,0.99556461,103920.0,103910.0,0.23724536]
[1747228093711,1.04140493,103920.0,103910.0,0.23724536]
[1747228094217,1.04140493,103920.0,103910.0,0.07524536]
[1747228095113,1.04140493,103920.0,103910.0,0.23724536]
[1747228095914,0.85774712,103920.0,103910.0,0.23724536]
[1747228096213,0.90788493,103920.0,103910.0,0.23724536]
[1747228097107,1.26868493,103920.0,103910.0,0.23724536]
[1747228097514,0.5532268,103920.0,103910.0,0.42969066]
[1747228097813,0.1924268,103920.0,103910.0,1.07038096]
[1747228098019,0.1924268,103920.0,103910.0,0.88672315]
[1747228100407,0.40708461,103920.0,103910.0,0.88672315]
[1747228100614,0.43948461,103920.0,103910.0,0.88672315]
[1747228101017,0.2558268,103920.0,103910.0,0.88672315]
[1747228102721,0.43948461,103920.0,103910.0,0.69427785]
[1747228103021,0.43948461,103920.0,103910.0,0.33347785]
[1747228103319,0.66676461,103920.0,103910.0,0.33347785]
[1747228103822,0.66676461,103920.0,103910.0,0.52592315]
[1747228104015,0.4831068,103920.0,103910.0,0.52592315]
[1747228104218,0.4831068,103920.0,103910.0,0.33347785]
[1747228104420,0.4831068,103920.0,103910.0,0.52592315]
[1747228105021,0.66676461,103920.0,103910.0,0.52592315]
[1747228105224,0.66676461,103920.0,103910.0,0.33347785]
[1747228107814,0.66676461,103920.0,103910.0,0.23724536]
[1747228108015,0.66676461,103920.0,103910.0,0.20514536]
[1747228108211,0.4831068,103920.0,103910.0,0.04314536]
[1747228108624,0.4831068,103920.0,103910.0,0.07514536]
[1747228109224,0.66676461,103920.0,103910.0,0.23714536]
[1747228111525,0.4831068,103920.0,103910.0,0.52582315]
[1747228111717,0.4831068,103920.0,103910.0,0.88662315]
[1747228111918,0.1924268,103920.0,103910.0,1.07028096]